bitfinex/quotes_BTCUSD_20251012
["timestamp","ask_amount","ask_price","bid_price","bid_amount"]
[1760275569407,0.60744974,111900.0,111890.0,0.01898297]
[1760275569814,0.60744974,111900.0,111890.0,0.00110828]
[1760275570842,0.53799793,111900.0,111890.0,0.00110828]
[1760275571450,0.518731,111900.0,111890.0,0.00110828]
[1760275571887,0.53799442,111900.0,111890.0,0.00110828]
[1760275572296,0.518731,111900.0,111890.0,0.00110828]
[1760275573345,0.53799134,111900.0,111890.0,0.00110828]
[1760275573480,0.60936918,111900.0,111890.0,0.00110828]
[1760275574515,0.53799134,111900.0,111890.0,0.00110828]
[1760275575625,0.53799134,111900.0,111890.0,0.02261828]
[1760275575829,0.518731,111900.0,111890.0,0.07155828]
[1760275576065,0.518731,111900.0,111890.0,0.03893828]
[1760275576233,0.518731,111900.0,111890.0,0.00110828]
[1760275576435,0.58818281,111900.0,111890.0,0.00110828]
[1760275577359,0.518731,111900.0,111890.0,0.03893828]
[1760275579203,0.518731,111900.0,111890.0,0.07653828]
[1760275579386,0.518731,111900.0,111890.0,0.03870828]
[1760275579589,0.5379864,111900.0,111890.0,0.03870828]
[1760275580231,0.518731,111900.0,111890.0,0.03870828]
[1760275580423,0.58818281,111900.0,111890.0,0.03870828]
[1760275580583,0.60743756,111900.0,111890.0,0.03870828]
[1760275580919,0.63432109,111900.0,111890.0,0.03870828]
[1760275581559,0.66447299,111900.0,111890.0,0.03870828]
[1760275581971,0.70523812,111900.0,111890.0,0.03870828]
[1760275583450,0.70723812,111900.0,111890.0,0.03870828]
[1760275584609,0.72125467,111900.0,111890.0,0.03870828]
[1760275586040,0.70454348,111900.0,111890.0,0.03870828]
[1760275586241,0.63509167,111900.0,111890.0,0.03870828]
[1760275587295,0.44443574,111900.0,111890.0,0.03870828]
[1760275587492,0.42518099,111900.0,111890.0,0.03870828]
[1760275591448,0.41116444,111900.0,111890.0,0.03870828]
[1760275591660,0.42787185,111900.0,111890.0,0.03870828]
[1760275591861,0.17877893,111870.0,111860.0,0.0376]
[1760275592065,0.17877893,111870.0,111860.0,0.03810026]
[1760275593235,0.12316925,111880.0,111860.0,0.03810026]
[1760275593398,0.17877893,111870.0,111860.0,0.05965026]
[1760275593598,0.17877893,111870.0,111860.0,0.03810026]
[1760275593796,0.20897375,111870.0,111860.0,0.03810026]
[1760275596901,0.23912565,111870.0,111860.0,0.03810026]
[1760275597461,0.26601675,111870.0,111860.0,0.03984588]
[1760275597810,0.60601675,111870.0,111860.0,0.03984588]
[1760275599316,0.6200353,111870.0,111860.0,0.03984588]
[1760275600554,0.58984048,111870.0,111860.0,0.03984588]
[1760275603155,0.58984048,111870.0,111860.0,0.11256588]
[1760275603156,0.51877893,111870.0,111860.0,0.11256588]
[1760275603554,0.51877893,111870.0,111860.0,0.13044537]
[1760275610741,0.20565418,111880.0,111860.0,0.30924029]
[1760275610913,0.17877893,111870.0,111860.0,0.25536518]
[1760275611639,0.17877893,111870.0,111860.0,0.28961518]
[1760275611957,0.17877893,111870.0,111860.0,0.2913608]
[1760275614020,0.17876296,111880.0,111870.0,0.17877893]
[1760275614223,0.17876296,111880.0,111870.0,0.25149893]
[1760275614426,0.17876296,111880.0,111870.0,0.25266257]
[1760275615223,0.17976296,111880.0,111870.0,0.25266257]
[1760275615466,0.18076296,111880.0,111870.0,0.25266257]
[1760275616411,0.18076296,111880.0,111870.0,0.07388364]
[1760275616633,0.18076296,111880.0,111870.0,0.09176153]
[1760275618473,0.22029904,111880.0,111870.0,0.05751153]
[1760275618695,0.22029904,111880.0,111870.0,0.00116364]
[1760275619133,0.20893083,111870.0,111860.0,0.03810026]
[1760275619789,0.54893083,111870.0,111860.0,0.03810026]
[1760275619975,0.56817358,111870.0,111860.0,0.03810026]
[1760275620217,0.65527944,111870.0,111860.0,0.03810026]
[1760275621105,0.66929811,111870.0,111860.0,0.03810026]
[1760275621432,0.65527944,111870.0,111860.0,0.03810026]
[1760275622820,0.17882689,111840.0,111830.0,0.11093388]
[1760275623044,0.17882689,111840.0,111830.0,0.13328395]
[1760275623251,0.17882689,111840.0,111830.0,0.10726007]
[1760275623252,0.21459067,111840.0,111830.0,0.10726007]
[1760275623505,0.17882689,111840.0,111830.0,0.10726007]
[1760275624243,0.17882689,111840.0,111830.0,0.10926007]
[1760275627395,0.17882689,111840.0,111830.0,0.37796007]
[1760275627730,0.17882689,111840.0,111830.0,0.38028839]
[1760275629008,0.2081829,111840.0,111830.0,0.34882839]
[1760275629204,0.2081829,111840.0,111830.0,0.31067839]
[1760275629413,0.26523041,111840.0,111830.0,0.31067839]
[1760275629620,0.26523041,111840.0,111830.0,0.04197839]
[1760275629838,0.26523041,111840.0,111830.0,0.04097839]
[1760275630058,0.28814524,111840.0,111830.0,0.04097839]
[1760275630510,0.17885888,111820.0,111800.0,0.0376]
[1760275630723,0.17887487,111810.0,111800.0,0.07617]
[1760275631154,0.20577706,111810.0,111800.0,0.07617]
[1760275631372,0.20577706,111810.0,111800.0,0.10763]
[1760275634499,0.21980117,111810.0,111800.0,0.10763]
[1760275635565,0.55980117,111810.0,111800.0,0.10763]
[1760275635968,0.56937405,111810.0,111800.0,0.10763]
[1760275636193,0.55980117,111810.0,111800.0,0.10763]
[1760275636436,0.55980117,111810.0,111800.0,0.10937701]
[1760275638449,0.19289898,111810.0,111800.0,0.12726609]
[1760275638650,0.17887487,111810.0,111800.0,0.12726609]
[1760275638846,0.17887487,111810.0,111800.0,0.10937701]
[1760275639837,0.21466165,111810.0,111800.0,0.10937701]
[1760275640795,0.21466165,111810.0,111800.0,0.03934701]
[1760275640796,0.55466165,111810.0,111800.0,0.03934701]
[1760275641173,0.17889087,111800.0,111790.0,0.01667]
[1760275641558,0.17889087,111800.0,111790.0,0.03897]
[1760275642284,0.17889087,111800.0,111790.0,0.07043]
[1760275642499,0.17889087,111800.0,111790.0,0.07143]
[1760275642916,0.25493646,111800.0,111790.0,0.07143]
[1760275643118,0.25493646,111800.0,111790.0,0.03997]
[1760275643321,0.17889087,111800.0,111790.0,0.04097]
[1760275643523,0.17889087,111800.0,111790.0,0.07243]
[1760275643877,0.20579495,111800.0,111790.0,0.07243]
[1760275644299,0.20579495,111800.0,111790.0,0.04097]
[1760275644622,0.62324316,111800.0,111790.0,0.04097]
[1760275644817,0.62324316,111800.0,111790.0,0.0024]
[1760275645164,0.62324316,111800.0,111790.0,0.04097]
[1760275645361,0.54579495,111800.0,111790.0,0.07243]
[1760275645611,0.54579495,111800.0,111790.0,0.07143]
[1760275646169,0.20579495,111800.0,111790.0,0.07143]
[1760275646367,0.17889087,111800.0,111790.0,0.16095952]
[1760275646600,0.17889087,111800.0,111790.0,0.38057084]
[1760275646809,0.14449087,111800.0,111790.0,0.38115331]
[1760275646989,0.17889087,111800.0,111790.0,0.38115331]
[1760275648180,0.17889087,111800.0,111790.0,0.38215331]
[1760275648473,0.17889087,111800.0,111790.0,0.38315331]
[1760275649354,0.57048424,111840.0,111790.0,0.38315331]
[1760275649355,0.02394154,111850.0,111820.0,0.18777783]
[1760275649560,0.1787995,111860.0,111840.0,0.03806]
[1760275649764,0.17895015,111860.0,111850.0,0.09953508]
[1760275649968,0.17895015,111860.0,111850.0,0.12187508]
[1760275650586,0.17895015,111860.0,111850.0,0.30068598]
[1760275650784,0.17895015,111860.0,111850.0,0.2856109]
[1760275650941,0.17895015,111860.0,111850.0,0.1068]
[1760275651159,0.17895015,111860.0,111850.0,0.12468109]
[1760275651327,0.17895015,111860.0,111850.0,0.30349199]
[1760275651552,0.17895015,111860.0,111850.0,0.2866109]
[1760275651952,0.17895015,111860.0,111850.0,0.1088]
[1760275652154,0.17895015,111860.0,111850.0,0.12668109]
[1760275653501,0.16672858,111870.0,111850.0,0.12668109]
[1760275653706,0.1787995,111860.0,111850.0,0.09554109]
[1760275653972,0.1787995,111860.0,111850.0,0.12668109]
[1760275654391,0.1787995,111860.0,111850.0,0.1078]
[1760275654600,0.1787995,111860.0,111850.0,0.1068]
[1760275655461,0.1817098,111860.0,111850.0,0.1068]
[1760275655610,0.19572775,111860.0,111850.0,0.1078]
[1760275656007,0.0029103,111860.0,111850.0,0.39402151]
[1760275656204,0.18170522,111860.0,111850.0,0.37614042]
[1760275656404,0.18170522,111860.0,111850.0,0.37714042]
[1760275656697,0.18170522,111860.0,111850.0,0.41884487]
[1760275661491,0.0029103,111860.0,111850.0,0.41884487]
[1760275661892,0.18170522,111860.0,111850.0,0.41884487]
[1760275662559,0.13043324,111870.0,111850.0,0.41884487]
[1760275662758,0.13043324,111870.0,111860.0,0.13638952]
[1760275662998,0.13043324,111870.0,111860.0,0.14527445]
[1760275663198,0.13043324,111870.0,111860.0,0.16647445]
[1760275668283,0.13101512,111870.0,111860.0,0.16647445]
[1760275669999,0.17878406,111870.0,111860.0,0.16647445]
[1760275671149,0.17878406,111870.0,111860.0,0.15758952]
[1760275673217,0.17878406,111870.0,111860.0,0.06806]
[1760275674670,0.21449406,111870.0,111860.0,0.03692]
[1760275675709,0.21449406,111870.0,111860.0,0.01572]
[1760275676060,0.24138155,111870.0,111860.0,0.01572]
[1760275676263,0.26710777,111870.0,111860.0,0.03692]
[1760275676663,0.17879492,111860.0,111850.0,0.08701816]
[1760275676889,0.17879492,111860.0,111850.0,0.10821816]
[1760275678151,0.17879492,111860.0,111850.0,0.10921816]
[1760275678509,0.20114492,111860.0,111850.0,0.07647816]
[1760275678709,0.17879492,111860.0,111850.0,0.10921816]
[1760275678908,0.19281255,111860.0,111850.0,0.10921816]
[1760275679139,0.19281255,111860.0,111850.0,0.11021816]
[1760275679542,0.21195776,111860.0,111850.0,0.10921816]
[1760275679728,0.21195776,111860.0,111850.0,0.10821816]
[1760275681839,0.28457145,111860.0,111850.0,0.07547816]
[1760275682050,0.30844404,111860.0,111850.0,0.07547816]
[1760275683015,0.22181272,111860.0,111850.0,0.10808816]
[1760275683186,0.19794013,111860.0,111850.0,0.10808816]
[1760275685785,0.55195794,111860.0,111850.0,0.10808816]
[1760275686186,0.56482889,111860.0,111850.0,0.10808816]
[1760275686633,0.58618889,111860.0,111850.0,0.07547816]
[1760275686844,0.66640944,111860.0,111850.0,0.07547816]
[1760275687043,0.63952068,111860.0,111850.0,0.07547816]
[1760275688048,0.55930013,111860.0,111850.0,0.07547816]
[1760275690633,0.53794013,111860.0,111850.0,0.10808816]
[1760275690835,0.55930013,111860.0,111850.0,0.07547816]
[1760275691429,0.53794013,111860.0,111850.0,0.10808816]
[1760275697900,0.55930013,111860.0,111850.0,0.07547816]
[1760275698118,0.64112349,111860.0,111850.0,0.07547816]
[1760275698674,0.5188109,111850.0,111840.0,0.05332]
[1760275698887,0.55358508,111850.0,111840.0,0.05347065]
[1760275699075,0.53803508,111850.0,111840.0,0.11042468]
[1760275700448,0.57494508,111850.0,111840.0,0.07781468]
[1760275700821,0.57494508,111850.0,111840.0,0.07881468]
[1760275701472,0.57494508,111850.0,111840.0,0.07781468]
[1760275701930,0.55358508,111850.0,111840.0,0.11042468]
[1760275702571,0.53803508,111850.0,111840.0,0.11042468]
[1760275705044,0.57494508,111850.0,111840.0,0.07781468]
[1760275705257,0.55358508,111850.0,111840.0,0.11042468]
[1760275705463,0.57494508,111850.0,111840.0,0.11042468]
[1760275706545,0.65464852,111850.0,111840.0,0.05463468]
[1760275706979,0.65464852,111850.0,111840.0,0.07781468]
[1760275707546,0.55358508,111850.0,111840.0,0.11042468]
[1760275708208,0.32478442,111850.0,111840.0,0.11042468]
[1760275708422,0.50359532,111850.0,111840.0,0.11042468]
[1760275709063,0.48804532,111850.0,111840.0,0.11042468]
[1760275712866,0.48804532,111850.0,111840.0,0.11142468]
[1760275713550,0.48804532,111850.0,111840.0,0.11242468]
[1760275726758,0.55476697,111850.0,111840.0,0.11242468]
[1760275727285,0.48804532,111850.0,111840.0,0.11242468]
[1760275747534,0.20570166,111850.0,111840.0,0.2019542]
[1760275747740,0.02689076,111850.0,111840.0,0.2019542]
[1760275747917,0.54570166,111850.0,111840.0,0.38078109]
[1760275748358,0.5188109,111850.0,111840.0,0.38078109]
[1760275750478,0.02726248,111860.0,111850.0,0.1788109]
[1760275750686,0.00037622,111860.0,111850.0,0.33824042]
[1760275751311,0.13759416,111880.0,111870.0,0.17877893]
[1760275751531,0.13759416,111880.0,111870.0,0.0699]
[1760275751532,0.21458374,111880.0,111870.0,0.0699]
[1760275752040,0.21458374,111880.0,111870.0,0.08777789]
[1760275752245,0.55458374,111880.0,111870.0,0.08777789]
[1760275753029,0.55458374,111880.0,111870.0,0.11603114]
[1760275753253,0.55458374,111880.0,111870.0,0.27793218]
[1760275753254,0.36688264,111880.0,111870.0,0.27793218]
[1760275753416,0.51876296,111880.0,111870.0,0.27793218]
[1760275754454,0.34,111880.0,111870.0,0.3674617]
[1760275754651,0.34,111880.0,111870.0,0.3684617]
[1760275754858,0.20562881,111890.0,111880.0,0.17876296]
[1760275755087,0.51874809,111890.0,111880.0,0.36052861]
[1760275755464,0.34,111890.0,111880.0,0.36052861]
[1760275755647,0.51874698,111890.0,111880.0,0.36052861]
[1760275756045,0.18054244,111890.0,111880.0,0.36052861]
[1760275756300,0.18054244,111890.0,111880.0,0.36152861]
[1760275756821,0.52054244,111890.0,111880.0,0.36152861]
[1760275757035,0.34179546,111890.0,111880.0,0.36152861]
[1760275757158,0.52054244,111890.0,111880.0,0.36152861]
[1760275757576,0.17874698,111890.0,111880.0,0.36152861]
[1760275757815,0.17874698,111890.0,111880.0,0.18276565]
[1760275758718,0.17874698,111890.0,111880.0,0.36152861]
[1760275761178,0.17874698,111890.0,111880.0,0.17669965]
[1760275761369,0.17874698,111890.0,111880.0,0.15436352]
[1760275761580,0.17874698,111890.0,111880.0,0.17223981]
[1760275761977,0.17874698,111890.0,111880.0,0.15436352]
[1760275762176,0.17874698,111890.0,111880.0,0.0709]
[1760275762615,0.2056269,111890.0,111880.0,0.0709]
[1760275765069,0.17876296,111880.0,111870.0,0.01596]
[1760275765212,0.17877893,111870.0,111860.0,0.01596]
[1760275765521,0.24905893,111870.0,111860.0,0.01596]
[1760275766070,0.27594507,111870.0,111860.0,0.01596]
[1760275766276,0.24324507,111870.0,111860.0,0.03694]
[1760275767018,0.24324507,111870.0,111860.0,0.05481949]
[1760275767781,0.24324507,111870.0,111860.0,0.05581949]
[1760275768332,0.24324507,111870.0,111860.0,0.05481949]
[1760275769607,0.25726067,111870.0,111860.0,0.05481949]
[1760275769809,0.05986484,111870.0,111860.0,0.05481949]
[1760275770015,0.23864377,111870.0,111860.0,0.05481949]
[1760275770225,0.23864377,111870.0,111860.0,0.08860949]
[1760275770587,0.23864377,111870.0,111860.0,0.09073107]
[1760275770791,0.04090174,111870.0,111860.0,0.19809206]
[1760275771024,0.18955961,111900.0,111880.0,0.17876296]
[1760275771223,0.21643539,111900.0,111890.0,0.08935469]
[1760275771810,0.18955961,111900.0,111890.0,0.08935469]
[1760275772011,0.18955961,111900.0,111890.0,0.1221126]
[1760275772482,0.00182814,111900.0,111890.0,0.3903891]
[1760275772652,0.18055914,111900.0,111890.0,0.37251441]
[1760275773116,0.00182814,111900.0,111890.0,0.37251441]
[1760275773539,0.18055914,111900.0,111890.0,0.37251441]
[1760275773759,0.52055914,111900.0,111890.0,0.3397565]
[1760275773979,0.52055914,111900.0,111890.0,0.16100952]
[1760275774436,0.52055914,111900.0,111890.0,0.16200952]
[1760275775353,0.34182814,111900.0,111890.0,0.3407565]
[1760275777663,0.52055914,111900.0,111890.0,0.3407565]
[1760275778483,0.34182814,111900.0,111890.0,0.3407565]
[1760275780529,0.52055914,111900.0,111890.0,0.3407565]
[1760275783961,0.52055914,111900.0,111890.0,0.07248]
[1760275784354,0.54743617,111900.0,111890.0,0.07248]
[1760275784519,0.54743617,111900.0,111890.0,0.11004]
[1760275785090,0.62253834,111900.0,111890.0,0.11004]
[1760275785859,0.20560803,111900.0,111890.0,0.11004]
[1760275788036,0.54560803,111900.0,111890.0,0.11004]
[1760275788254,0.54560803,111900.0,111890.0,0.07625]
[1760275788464,0.54560803,111900.0,111880.0,0.0385177]
[1760275788465,0.51874698,111890.0,111880.0,0.0385177]
[1760275788702,0.51874698,111890.0,111880.0,0.0533277]
[1760275788922,0.54101698,111890.0,111880.0,0.09043883]
[1760275789390,0.51874698,111890.0,111880.0,0.09043883]
[1760275789623,0.51874698,111890.0,111880.0,0.13907512]
[1760275789837,0.51874698,111890.0,111880.0,0.12350399]
[1760275790051,0.51874698,111890.0,111880.0,0.1056277]
[1760275790482,0.51874698,111890.0,111880.0,0.0748677]
[1760275790636,0.55696698,111890.0,111880.0,0.0748677]
[1760275793987,0.51874698,111890.0,111880.0,0.0748677]
[1760275794185,0.54562707,111890.0,111880.0,0.0748677]
[1760275794794,0.54562707,111890.0,111880.0,0.1056277]
[1760275796239,0.54562707,111890.0,111880.0,0.11619047]
[1760275796819,0.54562707,111890.0,111880.0,0.1056277]
[1760275797974,0.36688009,111890.0,111880.0,0.12350399]
[1760275798214,0.54562707,111890.0,111880.0,0.12350399]
[1760275798980,0.54562707,111890.0,111880.0,0.12450399]
[1760275800755,0.36688009,111890.0,111880.0,0.42312468]
[1760275800954,0.02688009,111890.0,111880.0,0.40524839]
[1760275801162,0.34,111900.0,111890.0,0.17874698]
[1760275801163,0.5187312,111900.0,111890.0,0.17874698]
[1760275801499,0.54560647,111900.0,111890.0,0.3227965]
[1760275801677,0.36687527,111900.0,111890.0,0.3227965]
[1760275801874,0.54560627,111900.0,111890.0,0.3227965]
[1760275802113,0.02687527,111900.0,111890.0,0.3227965]
[1760275802316,0.178731,111900.0,111890.0,0.3227965]
[1760275802520,0.178731,111900.0,111890.0,0.14404952]
[1760275802721,0.178731,111900.0,111890.0,0.34067119]
[1760275802945,0.178731,111900.0,111890.0,0.14404952]
[1760275803227,0.55896654,111900.0,111890.0,0.14404952]
[1760275803852,0.518731,111900.0,111890.0,0.14404952]
[1760275805090,0.17874698,111890.0,111880.0,0.0533277]
[1760275805302,0.17874698,111890.0,111880.0,0.0848877]
[1760275805505,0.20089698,111890.0,111880.0,0.0762877]
[1760275805638,0.59358698,111890.0,111880.0,0.0385177]
[1760275805840,0.69368077,111890.0,111880.0,0.0385177]
[1760275806044,0.72383267,111890.0,111880.0,0.0385177]
[1760275807453,0.72483267,111890.0,111880.0,0.0385177]
[1760275807654,0.64395524,111890.0,111880.0,0.0385177]
[1760275808455,0.64495524,111890.0,111880.0,0.0385177]
[1760275811687,0.64395524,111890.0,111880.0,0.0385177]
[1760275812692,0.64295524,111890.0,111880.0,0.0385177]
[1760275813987,0.56811524,111890.0,111880.0,0.0770877]
[1760275814218,0.60750524,111890.0,111880.0,0.0541277]
[1760275814429,0.64295524,111890.0,111880.0,0.0385177]
[1760275814716,0.3701519,111880.0,111850.0,0.07162362]
[1760275814947,0.61105908,111880.0,111870.0,0.0376]
[1760275815155,0.65242544,111880.0,111870.0,0.0376]
[1760275815308,0.65242544,111880.0,111870.0,0.03876356]
[1760275815981,0.65342544,111880.0,111870.0,0.03876356]
[1760275816185,0.65442544,111880.0,111870.0,0.03876356]
[1760275817421,0.65442544,111880.0,111870.0,0.06172356]
[1760275817624,0.65342544,111880.0,111870.0,0.06172356]
[1760275817822,0.65342544,111880.0,111870.0,0.03876356]
[1760275818041,0.65442544,111880.0,111870.0,0.03876356]
[1760275818224,0.32844086,111880.0,111870.0,0.03876356]
[1760275818435,0.3082245,111880.0,111870.0,0.03876356]
[1760275819086,0.3072245,111880.0,111870.0,0.03876356]
[1760275819282,0.3072245,111880.0,111870.0,0.06719592]
[1760275819483,0.2243826,111880.0,111870.0,0.06172356]
[1760275819690,0.2770726,111880.0,111870.0,0.03876356]
[1760275820238,0.6170726,111880.0,111870.0,0.03876356]
[1760275820447,0.63628896,111880.0,111870.0,0.03876356]
[1760275820650,0.75059979,111880.0,111870.0,0.03876356]
[1760275823339,0.5188109,111850.0,111840.0,0.0376]
[1760275823548,0.5360509,111850.0,111840.0,0.0376]
[1760275823783,0.5936509,111850.0,111840.0,0.0376]
[1760275823996,0.6726209,111850.0,111840.0,0.0376]
[1760275824434,0.72196294,111850.0,111840.0,0.0376]
[1760275825070,0.51885888,111820.0,111810.0,0.07162362]
[1760275825288,0.59369888,111820.0,111810.0,0.10922362]
[1760275825770,0.59369888,111820.0,111810.0,0.0376]
[1760275825993,0.67267848,111820.0,111810.0,0.0376]
[1760275826208,0.67267848,111820.0,111810.0,0.03810172]
[1760275826851,0.70283038,111820.0,111810.0,0.03810172]
[1760275827062,0.71183092,111820.0,111810.0,0.03810172]
[1760275827895,0.71183092,111820.0,111810.0,0.03910172]
[1760275828239,0.63285132,111820.0,111810.0,0.03810172]
[1760275830767,0.63285132,111820.0,111790.0,0.0004]
[1760275830768,0.51889087,111800.0,111790.0,0.0004]
[1760275831000,0.55564575,111800.0,111790.0,0.0004502]
[1760275831239,0.60784765,111800.0,111790.0,0.0051085]
[1760275831484,0.72274433,111800.0,111790.0,0.0051085]
[1760275832983,0.64230765,111800.0,111790.0,0.0051085]
[1760275833589,0.54905877,111790.0,111780.0,0.043]
[1760275833770,0.58590325,111790.0,111780.0,0.043]
[1760275833975,0.64241325,111790.0,111780.0,0.043]
[1760275834198,0.61226135,111790.0,111780.0,0.043]
[1760275834400,0.69823682,111790.0,111780.0,0.043]
[1760275835224,0.63632472,111790.0,111780.0,0.043]
[1760275835615,0.61226135,111790.0,111780.0,0.043]
[1760275836278,0.53812135,111790.0,111780.0,0.11395]
[1760275836657,0.53812135,111790.0,111780.0,0.08089]
[1760275836804,0.56017135,111790.0,111780.0,0.08089]
[1760275837019,0.57780135,111790.0,111780.0,0.08089]
[1760275837649,0.69823682,111790.0,111780.0,0.05896]
[1760275839162,0.69823682,111790.0,111780.0,0.05954256]
[1760275839715,0.69823682,111790.0,111780.0,0.04358256]
[1760275842958,0.61226135,111790.0,111780.0,0.04358256]
[1760275843783,0.63632472,111790.0,111780.0,0.04358256]
[1760275845981,0.63632472,111790.0,111780.0,0.11532256]
[1760275845982,0.56218472,111790.0,111780.0,0.11532256]
[1760275846200,0.53812135,111790.0,111780.0,0.08273256]
[1760275846416,0.58627472,111790.0,111780.0,0.08273256]
[1760275846646,0.60390472,111790.0,111780.0,0.08273256]
[1760275846879,0.19812135,111790.0,111780.0,0.13321484]
[1760275847091,0.17899647,111790.0,111780.0,0.13321484]
[1760275847759,0.51899647,111790.0,111780.0,0.13321484]
[1760275848191,0.51899647,111790.0,111780.0,0.13521484]
[1760275848405,0.53812243,111790.0,111780.0,0.13521484]
[1760275848864,0.54695036,111790.0,111780.0,0.13521484]
[1760275849088,0.5278244,111790.0,111780.0,0.34559301]
[1760275849308,0.5278244,111790.0,111780.0,0.11732256]
[1760275849524,0.5278244,111790.0,111780.0,0.13521484]
[1760275851506,0.54698693,111790.0,111780.0,0.13521484]
[1760275853325,0.36808006,111790.0,111780.0,0.31413772]
[1760275853545,0.538159,111790.0,111780.0,0.20685208]
[1760275853760,0.1980694,111790.0,111780.0,0.42439398]
[1760275854644,0.1980694,111790.0,111780.0,0.2454711]
[1760275854861,0.1980694,111790.0,111780.0,0.20685208]
[1760275855725,0.5380694,111790.0,111780.0,0.20685208]
[1760275855989,0.5380694,111790.0,111780.0,0.38577496]
[1760275856436,0.5380694,111790.0,111780.0,0.20685208]
[1760275859464,0.53814369,111790.0,111780.0,0.20685208]
[1760275861283,0.56031369,111790.0,111780.0,0.08473256]
[1760275861505,0.60232972,111790.0,111780.0,0.08473256]
[1760275862593,0.56218972,111790.0,111780.0,0.11787256]
[1760275862798,0.56218972,111790.0,111780.0,0.08473256]
[1760275862799,0.58435972,111790.0,111780.0,0.08473256]
[1760275863900,0.61023247,111790.0,111780.0,0.08473256]
[1760275864126,0.76790376,111790.0,111780.0,0.04558256]
[1760275864358,0.7199273,111790.0,111780.0,0.04558256]
[1760275864573,0.63120796,111790.0,111780.0,0.04558256]
[1760275865064,0.63120796,111790.0,111780.0,0.04458256]
[1760275865488,0.67932022,111790.0,111780.0,0.04358256]
[1760275866777,0.64310022,111790.0,111780.0,0.08213256]
[1760275866979,0.67932022,111790.0,111780.0,0.08213256]
[1760275867189,0.67932022,111790.0,111780.0,0.05962256]
[1760275867447,0.69886832,111790.0,111780.0,0.04358256]
[1760275868061,0.72577539,111790.0,111780.0,0.04358256]
[1760275868472,0.67766313,111790.0,111780.0,0.04358256]
[1760275868682,0.62986747,111790.0,111780.0,0.11527256]
[1760275869102,0.58692615,111790.0,111780.0,0.11527256]
[1760275869315,0.57022188,111790.0,111780.0,0.11527256]
[1760275869536,0.39131501,111790.0,111780.0,0.38372496]
[1760275869757,0.19814369,111790.0,111780.0,0.38372496]
[1760275870004,0.19814369,111790.0,111780.0,0.20480208]
[1760275870223,0.53814369,111790.0,111780.0,0.20480208]
[1760275871050,0.53814369,111790.0,111780.0,0.20580208]
[1760275872436,0.53814369,111790.0,111780.0,0.20680208]
[1760275873286,0.56031369,111790.0,111780.0,0.08413256]
[1760275873447,0.57828369,111790.0,111780.0,0.08413256]
[1760275873649,0.53814369,111790.0,111780.0,0.08413256]
[1760275873878,0.53814369,111790.0,111780.0,0.11727256]
[1760275874411,0.56031369,111790.0,111780.0,0.08413256]
[1760275874609,0.53814369,111790.0,111780.0,0.08413256]
[1760275874818,0.53814369,111790.0,111780.0,0.11727256]
[1760275876842,0.53814369,111790.0,111780.0,0.12903982]
[1760275877050,0.53814369,111790.0,111780.0,0.11727256]
[1760275878230,0.51890687,111790.0,111780.0,0.11727256]
[1760275878637,0.51890687,111790.0,111780.0,0.13516484]
[1760275879305,0.54107687,111790.0,111780.0,0.08413256]
[1760275879532,0.51890687,111790.0,111780.0,0.08413256]
[1760275879742,0.54107687,111790.0,111780.0,0.08413256]
[1760275880794,0.55904687,111790.0,111780.0,0.08413256]
[1760275881227,0.64194441,111790.0,111780.0,0.08413256]
[1760275881430,0.55904687,111790.0,111780.0,0.08413256]
[1760275882995,0.59526687,111790.0,111780.0,0.04558256]
[1760275883968,0.59526687,111790.0,111780.0,0.04458256]
[1760275884518,0.59526687,111790.0,111780.0,0.04358256]
[1760275885155,0.61453836,111790.0,111780.0,0.04358256]
[1760275885382,0.69936305,111790.0,111780.0,0.04358256]
[1760275885601,0.72866212,111790.0,111780.0,0.04358256]
[1760275886024,0.69936305,111790.0,111780.0,0.04358256]
[1760275886240,0.61453836,111790.0,111780.0,0.04358256]
[1760275886940,0.61453836,111790.0,111780.0,0.08092256]
[1760275887155,0.61453836,111790.0,111780.0,0.04358256]
[1760275888443,0.51892288,111780.0,111760.0,0.0004]
[1760275888597,0.53690889,111770.0,111760.0,0.0004]
[1760275888803,0.61457038,111770.0,111760.0,0.0004]
[1760275889218,0.62221115,111770.0,111760.0,0.0004]
[1760275894038,0.62221115,111770.0,111760.0,0.00156536]
[1760275894238,0.67613951,111770.0,111760.0,0.00156536]
[1760275894653,0.69016838,111770.0,111760.0,0.00156536]
[1760275897020,0.70940698,111770.0,111760.0,0.00156536]
[1760275898552,0.5189549,111760.0,111750.0,1e-08]
[1760275898774,0.62002383,111760.0,111750.0,1e-08]
[1760275898975,0.67508383,111760.0,111750.0,1e-08]
[1760275899313,0.70199959,111760.0,111750.0,0.00058277]
[1760275899858,0.61784066,111760.0,111750.0,0.00913277]
[1760275900054,0.5580849,111760.0,111750.0,0.03225277]
[1760275900308,0.5909249,111760.0,111750.0,0.00913277]
[1760275900510,0.5909249,111760.0,111750.0,0.00058277]
[1760275901284,0.61910216,111760.0,111750.0,0.00058277]
[1760275901484,0.70079917,111760.0,111750.0,0.00058277]
[1760275902998,0.68157191,111760.0,111750.0,0.00058277]
[1760275903156,0.70079759,111760.0,111750.0,0.00058277]
[1760275903351,0.70079631,111760.0,111750.0,0.00058277]
[1760275904374,0.7007949,111760.0,111750.0,0.00058277]
[1760275905847,0.7007949,111760.0,111750.0,0.00058276]
[1760275906041,0.42413771,111760.0,111750.0,0.00058276]
[1760275906242,0.58386962,111760.0,111750.0,0.00058276]
[1760275907013,0.50294962,111760.0,111750.0,0.03106276]
[1760275907222,0.52469962,111760.0,111750.0,0.03106276]
[1760275907641,0.36382311,111760.0,111750.0,0.03106276]
[1760275907852,0.2181649,111760.0,111750.0,0.03106276]
[1760275909330,0.2506249,111760.0,111750.0,0.00913276]
[1760275909527,0.5906249,111760.0,111750.0,0.00913276]
[1760275909786,0.5906249,111760.0,111750.0,0.00058276]
[1760275910194,0.6721654,111760.0,111750.0,0.00058276]
[1760275910520,0.69141089,111760.0,111750.0,0.00058276]
[1760275911253,0.70812286,111760.0,111750.0,0.00058276]
[1760275911860,0.62658236,111760.0,111750.0,0.00058276]
[1760275912039,0.62659851,111760.0,111750.0,0.00058276]
[1760275917484,0.55492851,111760.0,111750.0,0.05554276]
[1760275917651,0.55492851,111760.0,111750.0,0.32404319]
[1760275917652,0.35671197,111760.0,111750.0,0.32404319]
[1760275917854,0.02024638,111770.0,111760.0,0.1789549]
[1760275918055,0.00095901,111770.0,111760.0,0.36976632]
[1760275918411,0.1798979,111770.0,111760.0,0.12762952]
[1760275918657,0.2016479,111770.0,111760.0,0.12762952]
[1760275918883,0.34095901,111770.0,111760.0,0.16065952]
[1760275919026,0.5198979,111770.0,111760.0,0.17855501]
[1760275919841,0.34095901,111770.0,111760.0,0.39332074]
[1760275920044,0.34095901,111770.0,111760.0,0.37542525]
[1760275920692,0.5198979,111770.0,111760.0,0.16165952]
[1760275921504,0.5198979,111770.0,111760.0,0.0391]
[1760275921767,0.5198979,111770.0,111760.0,0.07213]
[1760275922175,0.5198979,111770.0,111760.0,0.07313]